bitfinex/quotes_SOLUSD_20250924
["timestamp","ask_amount","ask_price","bid_price","bid_amount"]
[1758702764477,7.08380839,210.86,210.83,36.66]
[1758702764677,4.74203338,210.86,210.83,37.32]
[1758702767268,2.34177501,210.87,210.83,42.06310643]
[1758702767674,7.77402086,210.87,210.83,42.06310643]
[1758702768271,7.77402086,210.87,210.83,37.32]
[1758702768475,2.34177501,210.86,210.83,37.32]
[1758702768985,7.77402086,210.87,210.84,0.66]
[1758702769180,5.43224585,210.87,210.85,36.68]
[1758702769372,7.77402086,210.87,210.86,36.68]
[1758702770499,5.43224585,210.87,210.86,36.68]
[1758702770681,7.77402086,210.87,210.86,36.68]
[1758702772907,0.92,210.91,210.86,37.35]
[1758702773067,2.34177501,210.9,210.87,0.67]
[1758702773391,10.11579587,210.9,210.88,0.67]
[1758702773587,10.11579587,210.9,210.89,36.68]
[1758702774300,10.83579587,210.9,210.89,36.68]
[1758702774597,9.99330482,210.9,210.89,36.68]
[1758702774915,9.27330482,210.9,210.89,36.68]
[1758702777409,7.77402086,210.9,210.89,36.68]
[1758702777696,9.27330482,210.9,210.89,36.68]
[1758702778081,14.0148885,210.9,210.89,36.68]
[1758702779203,14.0148885,210.9,210.83,14.38340004]
[1758702779204,14.7348885,210.9,210.83,14.38340004]
[1758702779511,0.72,210.89,210.84,36.66]
[1758702779816,1.49928396,210.88,210.85,0.67]
[1758702780177,15.75885569,210.88,210.84,36.66]
[1758702780494,6.24086764,210.9,210.85,0.67]
[1758702780692,6.24086764,210.9,210.86,0.67]
[1758702780874,14.2582163,210.89,210.87,36.66]
[1758702782495,14.2582163,210.89,210.87,37.33]
[1758702782690,14.2582163,210.89,210.88,0.67]
[1758702782895,0.2,210.91,210.88,0.67]
[1758702783201,0.2,210.91,210.89,0.67]
[1758702783392,0.2,210.91,210.9,36.66]
[1758702783795,0.2,210.91,210.9,37.33]
[1758702785091,0.2,210.91,210.9,42.07158368]
[1758702785610,0.2,210.91,210.9,37.33]
[1758702786678,0.2,210.91,210.9,42.07158368]
[1758702789196,0.2,210.91,210.9,55.66717769]
[1758702795922,0.2,210.91,210.9,55.80933926]
[1758702802717,0.2,210.91,210.9,19.14933926]
[1758702802920,0.2,210.91,210.9,55.78933926]
[1758702808020,0.2,210.91,210.9,135.98933926]
[1758702808219,0.2,210.91,210.9,98.67933926]
[1758702808404,0.2,210.91,210.9,137.53862322]
[1758702814035,0.2,210.91,210.9,57.33862322]
[1758702818926,0.2,210.92,210.9,57.33862322]
[1758702818927,0.2,210.92,210.91,13.73775558]
[1758702819253,0.2,210.93,210.91,94.65775558]
[1758702819550,0.2,210.93,210.92,52.59703954]
[1758702820331,0.2,210.93,210.92,57.33817361]
[1758702820647,0.2,210.93,210.92,20.69817361]
[1758702820843,0.2,210.93,210.92,56.61817361]
[1758702821044,0.2,210.93,210.92,57.33817361]
[1758702822956,0.2,210.93,210.92,137.53817361]
[1758702824240,0.2,210.93,210.92,151.64190412]
[1758702825157,0.91,210.93,210.92,27.84148609]
[1758702825360,0.91,210.93,210.92,64.46148609]
[1758702825649,0.91,210.93,210.92,69.20262016]
[1758702827857,0.91,210.93,210.92,27.84148609]
[1758702828063,0.91,210.93,210.92,62.62]
[1758702828368,0.2,210.93,210.92,64.11928396]
[1758702828531,0.2,210.93,210.92,77.85703954]
[1758702828730,0.2,210.93,210.92,82.59817361]
[1758702829153,0.2,210.93,210.92,83.31817361]
[1758702834656,0.2,210.93,210.92,163.51817361]
[1758702836567,0.2,210.93,210.92,164.35803407]
[1758702836862,1e-08,210.93,210.92,164.35803407]
[1758702837666,1e-08,210.93,210.92,178.64407901]
[1758702846557,1e-08,210.93,210.92,175.42277302]
[1758702847360,1e-08,210.93,210.92,175.56493459]
[1758702848578,1e-08,210.93,210.92,176.22493459]
[1758702849080,1e-08,210.93,210.92,178.56407901]
[1758702850981,1e-08,210.93,210.92,58.76493459]
[1758702851158,1e-08,210.93,210.92,95.22277302]
[1758702851557,1e-08,210.93,210.92,95.36493459]
[1758702852385,3.01914443,210.93,210.87,4.74225826]
[1758702852568,0.68,210.92,210.88,54.93760786]
[1758702852772,0.68,210.91,210.88,54.93760786]
[1758702853078,1e-08,210.93,210.88,54.93760786]
[1758702853282,0.68,210.92,210.9,0.14216157]
[1758702853483,1e-08,210.93,210.92,13.59559401]
[1758702854067,0.69000001,210.93,210.92,13.59559401]
[1758702855961,0.69000001,210.93,210.91,36.6]
[1758702856162,0.69,210.92,210.91,50.19559401]
[1758702856593,0.69000001,210.93,210.91,50.19559401]
[1758702856963,0.69000001,210.93,210.91,54.93695288]
[1758702858694,0.69,210.92,210.91,50.19559401]
[1758702858888,1e-08,210.93,210.91,54.93695288]
[1758702859084,0.69000001,210.93,210.91,54.93695288]
[1758702859783,0.69000001,210.93,210.91,50.19559401]
[1758702861094,0.69000001,210.93,210.91,54.93678669]
[1758702861389,0.66000001,210.93,210.91,54.93678669]
[1758702862181,1e-08,210.93,210.91,54.93678669]
[1758702862674,1e-08,210.93,210.91,55.61678669]
[1758702863193,1e-08,210.93,210.91,54.93678669]
[1758702869901,1e-08,210.93,210.91,50.19559401]
[1758702870395,1e-08,210.93,210.91,55.61692585]
[1758702874897,1e-08,210.93,210.91,54.93692585]
[1758702875208,1e-08,210.93,210.92,16.7569]
[1758702876507,1e-08,210.93,210.92,21.49803407]
[1758702877580,1e-08,210.93,210.92,35.65019185]
[1758702882305,1e-08,210.93,210.92,115.85019185]
[1758702882803,1e-08,210.93,210.92,130.10019185]
[1758702883207,0.2,210.98,210.97,0.14216157]
[1758702883510,0.2,210.98,210.97,133.5569]
[1758702885008,0.2,210.98,210.97,138.29691042]
[1758702887813,0.2,210.98,210.97,135.957766]
[1758702888012,0.2,210.98,210.97,138.29691042]
[1758702891612,0.92,210.98,210.97,18.477766]
[1758702891820,0.92,210.98,210.93,0.66]
[1758702891821,0.92,210.98,210.93,13.59559401]
[1758702892005,0.72,210.97,210.94,36.58]
[1758702893910,0.72,210.96,210.95,36.58]
[1758702899415,0.92,210.98,210.95,36.58]
[1758702899594,0.72,210.97,210.95,36.58]
[1758702900093,0.2,210.98,210.95,41.32044416]
[1758702900614,0.72,210.97,210.95,41.32044416]
[1758702900808,0.2,210.98,210.95,36.58]
[1758702901114,0.72,210.97,210.95,36.58]
[1758702902113,0.2,210.98,210.95,36.58]
[1758702902314,0.92,210.98,210.95,42.81823745]
[1758702903814,0.92,210.98,210.95,38.07779595]
[1758702904018,0.92,210.98,210.95,36.58]
[1758702904193,0.72,210.97,210.95,36.58]
[1758702904527,0.92,210.98,210.95,36.58]
[1758702904911,0.72,210.97,210.95,36.58]
[1758702905287,4.93984385,210.98,210.95,36.58]
[1758702905507,5.65984385,210.98,210.95,36.58]
[1758702906734,0.72,210.97,210.95,36.58]
[1758702906929,0.2,210.98,210.95,41.3204524]
[1758702907100,0.2,210.98,210.95,42.81824835]
[1758702908118,0.2,210.98,210.95,38.07779595]
[1758702908317,0.2,210.98,210.95,36.58]
[1758702909221,0.72,210.97,210.92,26.0]
[1758702909399,0.72,210.96,210.93,36.58]
[1758702909601,0.72,210.95,210.93,36.58]
[1758702910608,0.72,210.96,210.93,36.58]
[1758702911717,12.0494644,210.98,210.94,0.66]
[1758702911917,4.74001042,210.97,210.95,36.58]
[1758702913929,4.74001042,210.97,210.95,37.24]
[1758702914121,4.74001042,210.97,210.95,36.58]
[1758702915032,5.46001042,210.97,210.95,36.58]
[1758702915423,4.74001042,210.97,210.95,36.58]
[1758702916027,2.21779595,210.96,210.88,26.0]
[1758702916342,32.34266126,210.97,210.9,1.49779595]
[1758702916510,31.56486531,210.97,210.92,1.49779595]
[1758702916710,4.93982568,210.98,210.94,1.49779595]
[1758702916931,4.93982568,210.98,210.95,37.24]
[1758702917131,4.93982568,210.98,210.95,36.58]
[1758702917343,4.93982568,210.98,210.95,37.24]
[1758702918023,5.65982568,210.98,210.95,36.58]
[1758702918226,4.93982568,210.98,210.95,36.58]
[1758702918423,5.59982568,210.98,210.95,36.58]
[1758702919020,4.93982568,210.98,210.95,37.28]
[1758702920418,4.93982568,210.98,210.96,0.7]
[1758702920937,4.93982568,210.98,210.95,36.58]
[1758702921134,4.93982568,210.98,210.97,0.7]
[1758702922549,4.93982568,210.98,210.95,37.28]
[1758702922736,4.93982568,210.98,210.96,0.7]
[1758702924022,0.2,210.98,210.95,36.58]
[1758702924228,0.2,210.98,210.97,0.7]
[1758702925129,0.2,210.98,210.95,37.28]
[1758702925332,4.93980155,210.98,210.96,0.7]
[1758702925933,4.93980155,210.98,210.97,0.7]
[1758702926118,4.93980155,210.98,210.95,36.58]
[1758702926324,5.64980155,210.98,210.95,36.58]
[1758702926534,5.64980155,210.98,210.93,0.7]
[1758702926739,5.64980155,210.98,210.94,37.26]
[1758702927331,0.71,210.97,210.94,36.56]
[1758702927527,6.4375975,210.98,210.94,36.56]
[1758702927756,7.1475975,210.98,210.94,37.26]
[1758702928248,5.64980155,210.98,210.95,36.56]
[1758702928623,4.93980155,210.98,210.95,36.56]
[1758702928830,4.93980155,210.98,210.95,37.26]
[1758702929246,4.93980155,210.98,210.95,36.56]
[1758702931968,1.49779595,210.96,210.89,1.49779595]
[1758702932130,16.78926595,210.98,210.88,0.7]
[1758702932131,1.49779595,210.93,210.88,0.7]
[1758702932454,1.49779595,210.92,210.89,36.56]
[1758702932641,1.49779595,210.92,210.88,0.7]
[1758702932642,1.49779595,210.91,210.88,0.7]
[1758702932833,1.49779595,210.91,210.89,36.56]
[1758702933032,2.20779595,210.92,210.89,36.56]
[1758702933432,2.20779595,210.92,210.83,39.59559401]
[1758702933632,1.49779595,210.87,210.86,0.7]
[1758702933864,1.49779595,210.87,210.86,36.56]
[1758702934149,4.74225826,210.87,210.86,36.56]
[1758702935545,1.49779595,210.87,210.86,36.56]
[1758702936447,6.24005421,210.87,210.86,36.56]
[1758702937542,4.74225826,210.87,210.86,36.56]
[1758702937853,4.74201225,210.89,210.86,37.26]
[1758702938055,6.2398082,210.89,210.86,37.26]
[1758702939664,1.49779595,210.88,210.86,36.56]
[1758702939838,1.49779595,210.88,210.87,36.56]
[1758702940255,2.20779595,210.88,210.87,36.56]
[1758702940440,1.49779595,210.88,210.87,36.56]
[1758702940948,2.20779595,210.88,210.87,36.56]
[1758702941138,6.94982933,210.88,210.87,36.56]
[1758702941339,6.23982933,210.88,210.87,36.56]
[1758702941741,18.09491278,210.88,210.86,36.58]
[1758702944263,4.74203338,210.88,210.87,0.7]
[1758702944651,6.23982933,210.88,210.86,36.58]
[1758702944854,1.49779595,210.87,210.86,36.58]
[1758702945246,2.20779595,210.87,210.86,36.58]
[1758702945445,2.20779595,210.87,210.85,36.58]
[1758702945641,1.49779595,210.86,210.85,36.58]
[1758702946455,6.24027911,210.86,210.85,36.58]
[1758702948173,4.74248316,210.86,210.85,37.28]
[1758702948751,6.24027911,210.86,210.85,36.58]
[1758702951061,6.93027911,210.86,210.85,36.58]
[1758702951677,6.24027911,210.86,210.85,36.58]
[1758702952660,6.24027911,210.86,210.85,37.27]
[1758702953248,4.74248316,210.86,210.85,37.27]
[1758702954378,6.24027911,210.86,210.85,36.58]
[1758702954886,6.24027911,210.86,210.83,0.69]
[1758702955081,6.24027911,210.86,210.84,37.27]
[1758702958277,6.24027911,210.86,210.84,36.58]
[1758702958457,6.24027911,210.86,210.85,0.69]
[1758702958658,2.34346089,210.86,210.85,0.69]
[1758702958954,2.34346089,210.86,210.84,36.58]
[1758702959153,2.34346089,210.86,210.84,37.27]
[1758702959363,16.59711683,210.88,210.84,37.27]
[1758702959364,2.34346089,210.85,210.84,37.27]
[1758702959677,7.08616897,210.85,210.84,37.27]
[1758702960182,4.74270808,210.85,210.84,37.27]
[1758702960479,7.08616897,210.85,210.84,37.27]
[1758702961951,2.34346089,210.86,210.84,37.27]
[1758702962159,2.34346089,210.86,210.85,0.69]
[1758702963480,7.08594405,210.86,210.85,0.69]
[1758702963784,4.74248316,210.86,210.85,0.69]
[1758702965856,4.74227811,210.87,210.85,0.69]
[1758702966861,4.74227811,210.87,210.86,0.69]
[1758702967889,4.74227811,210.87,210.86,37.25]
[1758702968097,2.34346089,210.88,210.86,36.56]
[1758702968260,19.0018823,210.9,210.87,0.69]
[1758702968582,7.08509363,210.9,210.87,0.69]
[1758702968774,7.08509363,210.9,210.88,0.69]
[1758702969387,4.74163274,210.9,210.88,0.69]
[1758702969592,2.34346089,210.89,210.86,36.56]
[1758702969790,4.74203338,210.88,210.87,0.69]
[1758702970371,18.94057772,210.88,210.84,0.69]
[1758702970569,18.94057772,210.88,210.87,36.56]
[1758702970570,16.59711683,210.88,210.87,36.56]
[1758702971670,18.94057772,210.88,210.87,36.56]
[1758702971984,18.94057772,210.88,210.79,26.0]
[1758702972162,17.28711683,210.88,210.81,0.69]
[1758702972371,2.34346089,210.87,210.81,0.69]
[1758702973096,18.94057772,210.88,210.81,3.03346089]
[1758702973382,18.94057772,210.88,210.82,0.69]
[1758702973962,2.34346089,210.87,210.82,0.69]
[1758702975492,4.74248316,210.86,210.82,0.69]
[1758702976372,4.74225826,210.87,210.82,0.69]
[1758702979367,4.74199354,210.89,210.83,2.34346089]
[1758702979597,4.74199354,210.89,210.84,0.68]
[1758702979766,4.74199354,210.89,210.85,36.56]
[1758702979971,4.74199354,210.89,210.86,0.68]
[1758702980371,2.34346089,210.88,210.85,36.56]
[1758702980674,16.59651485,210.89,210.85,36.56]
[1758702980886,2.34346089,210.88,210.85,0.67]
[1758702981288,2.34346089,210.88,210.86,36.56]
[1758702981492,7.08569346,210.88,210.86,36.56]
[1758702981693,7.08569346,210.88,210.82,4.74336172]
[1758702981897,7.08569346,210.88,210.83,0.67]
[1758702982074,7.08569346,210.88,210.84,36.56]
[1758702982275,7.08569346,210.88,210.85,0.67]
[1758702982499,7.08569346,210.88,210.86,36.56]
[1758702982803,0.7,210.87,210.82,0.67]
[1758702983007,2.34346089,210.84,210.78,0.67]
[1758702983205,2.34346089,210.84,210.81,36.56]
[1758702983421,7.08660686,210.84,210.81,37.23]
[1758702984805,4.74314597,210.84,210.82,0.67]
[1758702985120,4.74314597,210.84,210.83,0.67]
[1758702985801,4.74314597,210.84,210.81,36.56]
[1758702986006,4.74314597,210.84,210.82,0.67]
[1758702987318,4.7409093,210.93,210.83,3.01346089]
[1758702987479,2.34346089,210.9,210.84,0.67]
[1758702987678,5.54076423,210.9,210.84,0.67]
[1758702987998,2.34346089,210.9,210.84,0.67]
[1758702988802,4.74180852,210.89,210.84,0.67]
[1758702989490,4.74180852,210.89,210.84,5.41284879]
[1758702989690,2.34346089,210.9,210.85,0.67]
[1758702989896,2.34346089,210.9,210.86,36.56]
[1758702990127,2.34346089,210.9,210.87,0.67]
[1758702990593,2.34346089,210.9,210.86,36.56]
[1758702990920,4.74135887,210.91,210.86,37.23]
[1758702991293,5.44135887,210.91,210.86,37.23]
[1758702993213,5.44135887,210.91,210.87,0.67]
[1758702995226,3.04346089,210.9,210.86,36.56]
[1758702996097,2.34346089,210.9,210.86,37.23]
[1758702996506,3.04346089,210.9,210.86,36.56]
[1758702996714,3.04346089,210.9,210.84,0.67]
[1758702997006,4.74180852,210.89,210.84,0.67]
[1758702997408,4.74180852,210.89,210.85,36.54]
[1758702997613,4.74180852,210.89,210.86,0.67]
[1758702998424,4.74180852,210.89,210.86,37.21]
[1758702998818,3.04346089,210.9,210.86,37.21]
[1758702998819,4.74158673,210.9,210.86,37.21]
[1758702999142,4.74134797,210.92,210.87,3.01346089]
[1758702999440,4.74134797,210.92,210.88,0.67]
[1758702999943,14.25686112,210.95,210.88,3.01346089]
[1758703000176,3.19677486,210.96,210.9,2.34346089]
[1758703000311,4.74023511,210.96,210.91,37.21]
[1758703000635,4.74023511,210.96,210.92,0.67]
[1758703001005,17.29082289,210.96,210.92,0.67]
[1758703002329,16.59082289,210.96,210.91,36.54]
[1758703002634,16.59082289,210.96,210.92,0.67]
[1758703003008,0.7,210.95,210.91,36.54]
[1758703003207,18.93428378,210.96,210.92,36.54]
[1758703003426,4.74023511,210.96,210.93,0.67]
[1758703004624,4.74001042,210.97,210.93,0.67]
[1758703004828,4.74001042,210.97,210.94,0.67]
[1758703005034,4.74001042,210.97,210.95,0.67]
[1758703008244,4.74001042,210.97,210.92,36.54]
[1758703008436,4.74001042,210.97,210.93,0.67]
[1758703008635,4.74001042,210.97,210.94,0.67]
[1758703010030,17.29003649,210.97,210.92,37.21]
[1758703010230,17.29003649,210.97,210.93,0.67]
[1758703012739,2.34346089,210.95,210.92,36.52]
[1758703012940,0.66,210.94,210.92,36.52]
[1758703014048,2.34346089,210.96,210.92,36.52]
[1758703014346,3.00346089,210.96,210.92,37.18]
[1758703014939,4.74045982,210.95,210.92,37.18]
[1758703015740,16.59160938,210.95,210.92,37.18]
[1758703015929,19.59507027,210.95,210.92,36.52]
[1758703016444,18.93507027,210.95,210.92,36.52]
[1758703016646,16.59160938,210.95,210.92,37.18]
[1758703020127,11.85114956,210.95,210.92,37.18]
[1758703020329,14.19461045,210.95,210.92,37.18]
[1758703020652,13.34974663,210.95,210.92,37.18]
[1758703021231,4.74045982,210.95,210.93,0.66]
[1758703021437,4.74045982,210.95,210.94,0.66]
[1758703022047,13.54851988,210.98,210.94,0.66]
[1758703022228,4.74001042,210.97,210.94,0.66]
[1758703022430,4.74001042,210.97,210.95,0.66]
[1758703023158,16.59003649,210.97,210.94,0.66]
[1758703023565,18.08863356,210.97,210.94,0.66]
[1758703028382,4.74001042,210.97,210.94,0.66]
[1758703028551,6.23860749,210.97,210.94,0.66]
[1758703028747,4.74001042,210.97,210.94,0.66]
[1758703029368,4.74001042,210.97,210.95,0.66]
[1758703030193,4.74001042,210.97,210.93,0.66]
[1758703030379,4.74001042,210.97,210.92,36.52]
[1758703030548,4.74001042,210.97,210.94,0.66]
[1758703031064,16.59003649,210.97,210.94,0.66]
[1758703033879,16.59003649,210.97,210.9,1.49859707]
[1758703033880,2.15859707,210.96,210.88,0.66]
[1758703034072,1.49859707,210.94,210.88,0.66]
[1758703034266,1.49859707,210.94,210.89,36.5]
[1758703034457,2.15859707,210.94,210.89,36.5]
[1758703034657,2.15859707,210.94,210.9,0.66]
[1758703034873,4.74045982,210.95,210.9,0.66]
[1758703035053,4.74045982,210.95,210.9,2.15859707]
[1758703035393,4.74045982,210.95,210.91,0.71]
[1758703035688,4.74045982,210.95,210.92,1.49859707]
[1758703035970,16.59003649,210.97,210.93,0.71]
[1758703036183,16.59003649,210.97,210.94,0.71]
[1758703038188,4.74001042,210.97,210.95,0.71]
[1758703038356,4.74001042,210.97,210.93,2.20859707]
[1758703039657,4.71711185,210.97,210.94,2.20859707]
[1758703039856,4.71711185,210.97,210.95,0.71]
[1758703044488,4.93979156,210.98,210.94,36.5]
[1758703044701,4.93979156,210.98,210.96,0.7]
[1758703044871,4.93979156,210.98,210.94,36.5]
[1758703045071,4.93979156,210.98,210.97,0.7]
[1758703047293,0.2,210.98,210.97,0.7]
[1758703049809,5.62978576,210.98,210.94,36.5]
[1758703050107,0.69,210.97,210.9,0.7]
[1758703050309,0.69,210.97,210.91,63.99859707]
[1758703050608,17.47925016,210.98,210.92,0.7]
[1758703050981,17.47925016,210.98,210.92,2.19859707]
[1758703051482,2.18859707,210.97,210.9,1.49859707]
[1758703051687,0.69,210.96,210.91,28.16]
[1758703051893,0.69,210.95,210.91,28.16]
[1758703052216,0.69,210.94,210.91,28.16]
[1758703053003,4.7409093,210.93,210.91,28.16]
[1758703054206,16.59206771,210.95,210.91,28.16]
[1758703054408,17.28206771,210.95,210.91,28.16]
[1758703057309,17.28206771,210.95,210.91,28.86]
[1758703057808,16.59206771,210.95,210.91,28.16]
[1758703057982,0.2,210.98,210.93,1.49859707]
[1758703058190,5.43001042,210.97,210.93,36.5]
[1758703058501,16.59003649,210.97,210.93,37.99859707]
[1758703058684,4.93987845,210.98,210.94,0.7]
[1758703058886,19.19470728,210.98,210.94,0.7]
[1758703059085,4.93987845,210.98,210.94,0.7]
[1758703060421,4.93987845,210.98,210.96,1.49859707]
[1758703060600,4.93987845,210.98,210.97,0.7]
[1758703061488,0.2,210.98,210.97,2.19859707]
[1758703071620,0.2,210.98,210.93,36.5]
[1758703071821,0.2,210.98,210.97,2.21859707]
[1758703076205,0.2,210.98,210.96,0.72]
[1758703077393,0.2,210.98,210.97,0.72]
[1758703077817,4.93978576,210.98,210.97,0.72]
[1758703078526,0.2,210.98,210.97,0.72]
[1758703078696,0.2,210.98,210.97,2.21859707]
[1758703080715,0.2,210.98,210.97,3.05977816]
[1758703082231,0.2,210.98,210.97,7.79978858]
[1758703082604,0.2,210.98,210.97,44.25978858]
[1758703085029,0.2,210.98,210.97,39.51977816]
[1758703085730,0.2,210.98,210.97,37.18]
[1758703085931,0.2,210.98,210.97,39.51977816]
[1758703086312,0.2,210.98,210.97,29.05977816]
[1758703086508,0.2,210.98,210.97,65.51977816]
[1758703092034,0.2,210.98,210.97,70.25978858]
[1758703094545,0.2,210.98,210.97,28.33977816]
[1758703094719,0.2,210.98,210.97,64.79977816]
[1758703095837,0.2,210.98,210.97,28.33977816]
[1758703096042,0.2,210.98,210.97,64.79977816]
[1758703096553,0.2,210.98,210.97,65.45977816]
[1758703096840,0.2,210.98,210.97,64.79977816]
[1758703097034,0.2,210.98,210.97,28.33977816]
[1758703097238,5.59978576,210.98,210.93,0.66]
[1758703097546,5.59978576,210.98,210.97,2.33977816]
[1758703097547,0.2,210.98,210.97,2.33977816]
[1758703097770,0.2,210.98,210.97,39.45977816]
[1758703098823,0.2,210.98,210.97,44.19978858]
[1758703100644,0.2,210.98,210.97,57.93754416]
[1758703100848,0.2,210.98,210.97,83.93754416]
[1758703101250,0.2,210.98,210.97,57.93754416]
[1758703123770,0.2,210.98,210.97,57.25754416]
[1758703123972,0.2,210.98,210.97,57.96754416]
[1758703125171,0.9,210.98,210.97,57.23754416]
[1758703125356,0.2,210.98,210.97,57.23754416]
[1758703128053,0.2,210.98,210.97,30.74001042]
[1758703128255,0.2,210.98,210.97,69.49978858]
[1758703128660,0.2,210.98,210.97,83.94754416]
[1758703130270,0.2,210.98,210.97,83.23754416]
[1758703130469,0.2,210.98,210.97,83.94754416]
[1758703131376,0.2,210.98,210.97,83.23754416]
[1758703136356,0.9,210.98,210.97,83.23754416]
[1758703136556,0.2,210.98,210.97,83.23754416]
[1758703139461,0.9,210.98,210.97,38.75977816]
[1758703140483,5.63978576,210.98,210.97,38.75977816]
[1758703140785,18.98689892,210.98,210.87,37.0]
[1758703140957,1.49764876,210.95,210.88,37.91764876]
[1758703141377,0.7,210.94,210.88,37.91764876]
[1758703141581,0.7,210.93,210.88,37.91764876]
[1758703141893,0.7,210.92,210.88,36.42]
[1758703142065,15.75383238,210.94,210.88,36.42]
[1758703142380,0.7,210.91,210.88,36.42]
[1758703142591,5.44174917,210.9,210.88,36.42]
[1758703142822,0.7,210.89,210.88,36.42]
[1758703144665,5.44180852,210.89,210.88,36.42]
[1758703147382,4.74180852,210.89,210.88,36.42]
[1758703147692,5.44157818,210.91,210.88,36.42]
[1758703147984,14.95686112,210.9,210.88,36.42]
[1758703148491,11.85104669,210.96,210.89,1.49764876]
[1758703148675,18.99724131,210.93,210.9,36.42]
[1758703148987,2.19764876,210.92,210.91,36.42]
[1758703149373,2.19764876,210.92,210.85,1.49764876]
[1758703149592,0.7,210.91,210.86,36.42]
[1758703149776,0.7,210.9,210.86,36.42]
[1758703150182,14.95821629,210.9,210.86,36.42]
[1758703150793,4.74180852,210.89,210.86,36.42]
[1758703151298,0.7,210.88,210.86,36.42]
[1758703151468,0.7,210.87,210.86,36.42]
[1758703151890,5.44180852,210.89,210.86,36.42]
[1758703152189,0.7,210.88,210.86,36.42]
[1758703152492,0.7,210.88,210.84,0.68]
[1758703152493,19.0007025,210.89,210.87,36.42]
[1758703152680,19.7007025,210.89,210.88,36.42]
[1758703157695,31.55522381,210.89,210.88,36.44]
[1758703158813,33.05287257,210.89,210.88,36.44]
[1758703160588,56.76191519,210.89,210.78,0.66]
[1758703160789,1.49764876,210.84,210.78,0.66]
[1758703160992,0.69,210.83,210.79,36.44]
[1758703161194,0.69,210.82,210.79,36.44]
[1758703161390,2.59181861,210.83,210.79,37.1]
[1758703161594,0.69,210.83,210.79,37.1]
[1758703161997,14.26363961,210.82,210.8,0.66]
[1758703162380,14.26363961,210.82,210.81,0.66]
[1758703166802,4.74296767,210.84,210.81,0.66]
[1758703167003,14.26228339,210.83,210.81,0.66]
[1758703167584,14.26228339,210.83,210.79,38.59764876]
[1758703167784,14.26228339,210.83,210.8,0.66]
[1758703171203,19.69550173,210.83,210.79,37.1]
[1758703171387,19.69550173,210.83,210.8,36.44]
[1758703171593,5.43321834,210.83,210.8,36.44]
[1758703171914,14.26363961,210.82,210.8,36.44]
[1758703172101,14.26363961,210.82,210.8,37.1]
[1758703172301,14.26363961,210.82,210.8,36.44]
[1758703172488,14.95363961,210.82,210.8,36.44]
[1758703172858,19.00707581,210.82,210.8,36.44]
[1758703175712,19.00707581,210.82,210.8,37.1]
[1758703176413,14.26363961,210.82,210.81,0.66]
[1758703176919,4.74290679,210.85,210.81,0.66]
[1758703177131,4.74290679,210.85,210.82,0.66]
[1758703177312,14.2622834,210.84,210.82,0.66]
[1758703178127,4.74299054,210.84,210.81,2.15764876]
[1758703178319,4.74299054,210.84,210.82,0.66]
[1758703179013,19.00527393,210.84,210.8,37.93764876]
[1758703179194,19.00527393,210.84,210.81,0.66]
[1758703179394,19.00527393,210.84,210.82,36.44]
[1758703179595,4.74299054,210.84,210.82,36.44]
[1758703179823,14.26296147,210.83,210.82,36.44]
[1758703181214,14.26296147,210.83,210.82,37.1]
[1758703182007,4.74299054,210.84,210.82,37.1]
[1758703182229,4.74270808,210.85,210.82,37.1]
[1758703182900,14.26296146,210.84,210.82,37.1]